fUST/lending_fUST_20240613
["ID","MTS","AMOUNT","RATE_DAILY","PERIOD"]
[329341840,1718259056360,-504.40469512,0.0001726,2]
[329341841,1718259056373,-500.0,0.0001726,2]
[329341842,1718259056384,-500.0,0.0001726,2]
[329341843,1718259056399,-500.0,0.0001726,2]
[329341844,1718259056415,-500.0,0.0001726,2]
[329341845,1718259056426,-1096.8,0.0001726,2]
[329341846,1718259056438,-500.0,0.0001726,2]
[329341847,1718259056452,-500.0,0.0001726,2]
[329341848,1718259056463,-1892.7,0.0001726,2]
[329341849,1718259056477,-500.0,0.0001726,2]
[329341850,1718259056487,-500.0,0.0001726,2]
[329341851,1718259056498,-500.0,0.0001726,2]
[329341852,1718259056509,-500.0,0.0001726,2]
[329341853,1718259056524,-500.0,0.0001726,2]
[329341854,1718259056536,-500.0,0.0001726,2]
[329341855,1718259056549,-500.0,0.0001726,2]
[329341856,1718259056560,-522.48228091,0.0001726,2]
[329341857,1718259056572,-500.0,0.0001726,2]
[329341858,1718259056586,-500.0,0.0001726,2]
[329341859,1718259056600,-500.0,0.0001726,2]
[329341860,1718259056610,-500.0,0.0001726,2]
[329341861,1718259056621,-500.0,0.0001726,2]
[329341862,1718259056635,-500.0,0.0001726,2]
[329341863,1718259056646,-500.0,0.0001726,2]
[329341864,1718259056664,-500.0,0.0001726,2]
[329341865,1718259056676,-1003.6,0.0001726,2]
[329341866,1718259056688,-509.17,0.0001726,2]
[329341867,1718259056702,-500.0,0.0001726,2]
[329341868,1718259056714,-500.0,0.0001726,2]
[329341869,1718259056754,-500.0,0.0001726,2]
[329341870,1718259056766,-905.34,0.0001726,2]
[329341871,1718259056777,-500.0,0.0001726,2]
[329341872,1718259056788,-500.0,0.0001726,2]
[329341873,1718259056799,-500.0,0.0001726,2]
[329341874,1718259056820,-994.87,0.0001726,2]
[329341875,1718259056833,-500.0,0.0001726,2]
[329341876,1718259056846,-500.0,0.0001726,2]
[329341877,1718259056858,-500.0,0.0001726,2]
[329341878,1718259056887,-638.61,0.0001726,2]
[329341879,1718259056912,-500.0,0.0001726,2]
[329341880,1718259056940,-507.78217919,0.0001726,2]
[329341881,1718259056952,-500.0,0.0001726,2]
[329341882,1718259056963,-295.79539,0.0001726,2]
[329341883,1718259056974,-500.0,0.0001726,2]
[329341884,1718259056989,-500.0,0.0001726,2]
[329341885,1718259057000,-500.0,0.0001726,2]
[329341886,1718259057024,-295.79539,0.0001726,2]
[329341887,1718259057036,-551.79,0.0001726,2]
[329341888,1718259057053,-500.0,0.0001726,2]
[329341889,1718259057064,-500.0,0.0001726,2]
[329341890,1718259057079,-1532.283998,0.0001726,2]
[329341891,1718259057096,-761.37,0.0001726,2]
[329341892,1718259057107,-3329.91,0.0001726,2]
[329341893,1718259057118,-507.84238571,0.0001726,2]
[329341894,1718259057134,-1532.283998,0.0001726,2]
[329341895,1718259057144,-500.0,0.0001726,2]
[329341896,1718259057161,-500.0,0.0001726,2]
[329341897,1718259057173,-500.0,0.0001726,2]
[329341898,1718259057187,-1512.49,0.0001726,2]
[329341899,1718259057198,-500.0,0.0001726,2]
[329341900,1718259057209,-151.0,0.0001726,2]
[329341901,1718259057224,-151.0,0.0001726,2]
[329341902,1718259057235,-500.0,0.0001726,2]
[329341903,1718259057248,-500.0,0.0001726,2]
[329341904,1718259057260,-2732.06,0.0001726,2]
[329341905,1718259057271,-500.0,0.0001726,2]
[329341906,1718259057285,-500.0,0.0001726,2]
[329341907,1718259057297,-1407.16888136,0.00017434,2]
[329341908,1718259057309,-500.0,0.00017533,2]
[329341909,1718259057321,-500.0,0.00017533,2]
[329341910,1718259057333,-1132.7,0.00017533,2]
[329341911,1718259057349,-500.0,0.00017533,2]
[329341912,1718259057360,-500.0,0.00017533,2]
[329341913,1718259057370,-500.0,0.00017534,2]
[329341914,1718259057380,-500.0,0.00017534,2]
[329341915,1718259057391,-500.0,0.00017534,2]
[329341916,1718259057408,-500.0,0.00017534,2]
[329341917,1718259057419,-500.0,0.00017534,2]
[329341918,1718259057430,-500.0,0.00017534,2]
[329341919,1718259057441,-500.0,0.00017534,2]
[329341920,1718259057457,-504.96060568,0.00017534,2]
[329341921,1718259057469,-500.0,0.00017534,2]
[329341922,1718259057490,-500.0,0.00017534,2]
[329341923,1718259057507,-500.0,0.00017534,2]
[329341924,1718259057518,-500.0,0.00017534,2]
[329341925,1718259057535,-500.0,0.00017534,2]
[329341926,1718259057545,-500.0,0.00017534,2]
[329341927,1718259057556,-500.0,0.00017534,2]
[329341928,1718259057574,-500.0,0.00017534,2]
[329341929,1718259057649,-500.0,0.00017534,2]
[329341930,1718259057664,-500.0,0.00017534,2]
[329341931,1718259057679,-500.0,0.00017534,2]
[329341932,1718259057699,-500.0,0.00017534,2]
[329341933,1718259057719,-500.0,0.00017534,2]
[329341934,1718259057747,-500.0,0.00017534,2]
[329341935,1718259057780,-509.40478286,0.00017534,2]
[329341936,1718259057813,-500.0,0.00017534,2]
[329341937,1718259057833,-500.0,0.00017534,2]
[329341938,1718259057844,-500.0,0.00017534,2]
[329341939,1718259057856,-500.0,0.00017534,2]
[329341940,1718259057906,-500.0,0.00017534,2]
[329341941,1718259057928,-1250.01,0.00017534,2]
[329341942,1718259057958,-500.0,0.00017534,2]
[329341943,1718259057979,-525.18777761,0.00017534,2]
[329341944,1718259057993,-500.0,0.00017534,2]
[329341945,1718259058012,-500.0,0.00017534,2]
[329341946,1718259058024,-508.54560288,0.00017534,2]
[329341947,1718259058036,-500.0,0.00017534,2]
[329341948,1718259058052,-363.82141599,0.00017534,2]
[329341949,1718259058089,-4070.87,0.00017534,2]
[329341950,1718259058137,-510.36463853,0.00017534,2]
[329341951,1718259058192,-580.08,0.00017534,2]
[329341952,1718259058209,-500.0,0.00017534,2]
[329341953,1718259058234,-151.0,0.00017534,2]
[329341954,1718259058248,-509.87051447,0.00017534,2]
[329341955,1718259058266,-500.0,0.00017534,2]
[329341956,1718259058279,-500.0,0.00017534,2]
[329341957,1718259058334,-500.0,0.00017534,2]
[329341958,1718259058345,-342.95439231,0.00017534,2]
[329341959,1718259058361,-457.5668634,0.00017534,2]
[329341960,1718259058373,-1096.8,0.00017534,2]
[329341961,1718259058384,-500.0,0.00017534,2]
[329341962,1718259058394,-151.0,0.00017534,2]
[329341963,1718259058420,-1892.7,0.00017534,2]
[329341964,1718259058448,-508.84,0.00017534,2]
[329341965,1718259058459,-500.0,0.00017534,2]
[329341966,1718259058477,-500.0,0.00017534,2]
[329341967,1718259058504,-500.0,0.00017534,2]
[329341968,1718259058526,-500.0,0.00017534,2]
[329341969,1718259058538,-151.0,0.00017534,2]
[329341970,1718259058550,-500.0,0.00017534,2]
[329341971,1718259058570,-500.0,0.00017534,2]
[329341972,1718259058586,-151.0,0.00017534,2]
[329341973,1718259058599,-152.008787,0.00017534,2]
[329341974,1718259058622,-500.0,0.00017534,2]
[329341975,1718259058634,-500.0,0.00017534,2]
[329341976,1718259058651,-500.0,0.00017534,2]
[329341977,1718259058664,-500.0,0.00017534,2]
[329341978,1718259058676,-500.0,0.00017534,2]
[329341979,1718259058688,-500.0,0.00017534,2]
[329341980,1718259058699,-500.0,0.00017534,2]
[329341981,1718259058711,-1003.6,0.00017534,2]
[329341982,1718259058726,-500.0,0.00017534,2]
[329341983,1718259058763,-593.511182,0.00017534,2]
[329341984,1718259058789,-151.0,0.00017534,2]
[329341985,1718259058814,-593.511182,0.00017534,2]
[329341986,1718259058832,-500.0,0.00017534,2]
[329341987,1718259058844,-905.34,0.00017534,2]
[329341988,1718259058857,-500.0,0.00017534,2]
[329341989,1718259058868,-151.0,0.00017534,2]
[329341990,1718259058885,-1000.0,0.00017534,2]
[329341991,1718259058904,-994.87,0.00017534,2]
[329341992,1718259058927,-1000.0,0.00017534,2]
[329341993,1718259058953,-1000.0,0.00017534,2]
[329341994,1718259058969,-1000.0,0.00017534,2]
[329341995,1718259059080,-1000.0,0.00017534,2]
[329341996,1718259059092,-1000.0,0.00017534,2]
[329341997,1718259059108,-1000.0,0.00017534,2]
[329341998,1718259059124,-1000.0,0.00017534,2]
[329341999,1718259059138,-1000.0,0.00017534,2]
[329342000,1718259059152,-1000.0,0.00017534,2]
[329342001,1718259059164,-1000.0,0.00017534,2]
[329342002,1718259059175,-682.222965,0.00017534,2]
[329342003,1718259059192,-500.0,0.00017534,2]
[329342004,1718259059207,-500.0,0.00017534,2]
[329342005,1718259059220,-638.61,0.00017534,2]
[329342006,1718259059230,-1173.980648,0.00017534,2]
[329342007,1718259059243,-1173.980648,0.00017534,2]
[329342008,1718259059254,-500.0,0.00017534,2]
[329342009,1718259059267,-500.0,0.00017534,2]
[329342010,1718259059279,-555.52,0.00017534,2]
[329342011,1718259059292,-500.0,0.00017534,2]
[329342012,1718259059307,-500.0,0.00017534,2]
[329342013,1718259059324,-551.79,0.00017534,2]
[329342014,1718259059340,-500.0,0.00017534,2]
[329342015,1718259059358,-507.70759402,0.00017534,2]
[329342016,1718259059375,-761.37,0.00017534,2]
[329342017,1718259059393,-3329.91,0.00017534,2]
[329342018,1718259059409,-500.0,0.00017534,2]
[329342019,1718259059434,-1512.49,0.00017534,2]
[329342020,1718259059453,-399.2,0.00017534,2]
[329342021,1718259059472,-500.0,0.00017534,2]
[329342022,1718259059493,-500.0,0.00017534,2]
[329342023,1718259059517,-2732.06,0.00017534,2]
[329342024,1718259059547,-500.0,0.00017534,2]
[329342025,1718259059562,-500.0,0.00017707,2]
[329342026,1718259059585,-1132.7,0.00017707,2]
[329342027,1718259059612,-500.0,0.00017707,2]
[329342028,1718259059623,-500.0,0.00017707,2]
[329342029,1718259059635,-50000.74587109,0.00017708,2]
[329342030,1718259059650,-569.721875,0.00017708,2]
[329342031,1718259059664,-569.721875,0.00017708,2]
[329342032,1718259059698,-326.944004,0.00017708,2]
[329342033,1718259059731,-326.944004,0.00017708,2]
[329342034,1718259059773,-216.996502,0.00017708,2]
[329342035,1718259059789,-151.0,0.00017708,2]
[329342036,1718259059802,-151.0,0.00017708,2]
[329342037,1718259059819,-1019.512331,0.00017708,2]
[329342038,1718259059836,-151.0,0.00017708,2]
[329342039,1718259059851,-1019.512331,0.00017708,2]
[329342040,1718259059876,-151.0,0.00017708,2]
[329342041,1718259059889,-151.744021,0.00017708,2]
[329342042,1718259059904,-457.251663,0.00017708,2]
[329342043,1718259059921,-457.251663,0.00017708,2]
[329342044,1718259059942,-295.79539,0.00017708,2]
[329342045,1718259059955,-295.79539,0.00017708,2]
[329342046,1718259059970,-1532.283998,0.00017708,2]
[329342047,1718259059990,-1532.283998,0.00017708,2]
[329342048,1718259060008,-151.0,0.00017708,2]
[329342049,1718259060023,-151.0,0.00017708,2]
[329342050,1718259060043,-647.6,0.00017708,2]
[329342051,1718259060097,-500.0,0.00017807,2]
[329342052,1718259060116,-1132.7,0.00017807,2]
[329342053,1718259060158,-500.0,0.00017807,2]
[329342054,1718259060181,-500.0,0.00017808,2]
[329342055,1718259060199,-500.0,0.00017808,2]
[329342056,1718259060216,-500.0,0.00017808,2]
[329342057,1718259060227,-509.08859947,0.00017808,2]
[329342058,1718259060253,-500.0,0.00017808,2]
[329342059,1718259060280,-500.0,0.00017808,2]
[329342060,1718259060294,-500.0,0.00017808,2]
[329342061,1718259060312,-169.95694796,0.00017808,2]
[329342062,1718259060327,-500.0,0.00017808,2]
[329342063,1718259060339,-547.01315045,0.00017808,2]
[329342064,1718259060356,-500.0,0.00017808,2]
[329342065,1718259060369,-500.0,0.00017808,2]
[329342066,1718259060384,-380.94792119,0.00017808,2]
[329342067,1718259060409,-450.50051708,0.00017808,2]
[329342068,1718259060423,-500.0,0.00017808,2]
[329342069,1718259060448,-500.0,0.00017808,2]
[329342070,1718259060460,-1250.01,0.00017808,2]
[329342071,1718259060474,-500.0,0.00017808,2]
[329342072,1718259060485,-500.0,0.00017808,2]
[329342073,1718259060496,-500.0,0.00017808,2]
[329342074,1718259060508,-4070.87,0.00017808,2]
[329342075,1718259060525,-580.08,0.00017808,2]
[329342076,1718259060536,-505.98699661,0.00017808,2]
[329342077,1718259060575,-500.0,0.00017808,2]
[329342078,1718259060588,-500.0,0.00017808,2]
[329342079,1718259060620,-1096.8,0.00017808,2]
[329342080,1718259060636,-1892.7,0.00017808,2]
[329342081,1718259060647,-500.0,0.00017808,2]
[329342082,1718259060659,-500.0,0.00017808,2]
[329342083,1718259060669,-500.0,0.00017808,2]
[329342084,1718259060684,-500.0,0.00017808,2]
[329342085,1718259060697,-500.0,0.00017808,2]
[329342086,1718259060709,-151.0,0.00017808,2]
[329342087,1718259060731,-500.0,0.00017808,2]
[329342088,1718259060745,-500.0,0.00017808,2]
[329342089,1718259060759,-507.65026198,0.00017808,2]
[329342090,1718259060772,-500.0,0.00017808,2]
[329342091,1718259060786,-500.0,0.00017808,2]
[329342092,1718259060799,-505.36698428,0.00017808,2]
[329342093,1718259060813,-500.0,0.00017808,2]
[329342094,1718259060824,-1003.6,0.00017808,2]
[329342095,1718259060844,-593.511182,0.00017808,2]
[329342096,1718259060859,-151.0,0.00017808,2]
[329342097,1718259060869,-593.511182,0.00017808,2]
[329342098,1718259060880,-905.34,0.00017808,2]
[329342099,1718259060892,-500.0,0.00017808,2]
[329342100,1718259060904,-151.0,0.00017808,2]
[329342101,1718259060917,-994.87,0.00017808,2]
[329342102,1718259060933,-500.0,0.00017808,2]
[329342103,1718259060949,-500.0,0.00017808,2]
[329342104,1718259060964,-638.61,0.00017808,2]
[329342105,1718259060976,-1173.980648,0.00017808,2]
[329342106,1718259060988,-1173.980648,0.00017808,2]
[329342107,1718259061007,-500.0,0.00017808,2]
[329342108,1718259061018,-500.0,0.00017808,2]
[329342109,1718259061028,-500.0,0.00017808,2]
[329342110,1718259061044,-500.0,0.00017808,2]
[329342111,1718259061056,-551.79,0.00017808,2]
[329342112,1718259061066,-761.37,0.00017808,2]
[329342113,1718259061076,-3329.91,0.00017808,2]
[329342114,1718259061088,-1512.49,0.00017808,2]
[329342115,1718259061100,-500.0,0.00017808,2]
[329342116,1718259061110,-2732.06,0.00017808,2]
[329342117,1718259061121,-500.0,0.00017808,2]
[329342118,1718259061132,-647.6,0.00017913,2]
[329342119,1718259061142,-500.0,0.00017998,2]
[329342120,1718259061162,-151.0,0.00017999,2]
[329342121,1718259061173,-500.0,0.00017999,2]
[329342122,1718259061184,-305.39116304,0.00017999,2]
[329342123,1718259061196,-1132.7,0.00017999,2]
[329342124,1718259061206,-1132.7,0.00017999,2]
[329342125,1718259061217,-1132.7,0.00017999,2]
[329342126,1718259061228,-1132.7,0.00017999,2]
[329342127,1718259061240,-1132.7,0.00017999,2]
[329342128,1718259061253,-1132.89779616,0.00017999,2]
[329342129,1718259061263,-500.0,0.00017999,2]
[329342130,1718259061275,-325.11946222,0.00017999,2]
[329342131,1718259061285,-500.0,0.00017999,2]
[329342132,1718259061297,-1355.76865896,0.00018,2]
[329342133,1718259061308,-31896.92727391,0.00018,2]
[329342134,1718259061327,-36513.26324369,0.00018,2]
[329342135,1718259061339,-876.95081653,0.00018,2]
[329342136,1718259061349,-476.76775304,0.00018,2]
[329342137,1718259061359,-2765.7597697,0.00018,2]
[329342138,1718259061369,-151.0,0.00018,2]
[329342139,1718259061384,-326.944004,0.00018,2]
[329342140,1718259061394,-326.944004,0.00018,2]
[329342141,1718259061409,-151.0,0.00018,2]
[329342142,1718259061419,-151.0,0.00018,2]
[329342143,1718259061435,-1019.512331,0.00018,2]
[329342144,1718259061449,-151.0,0.00018,2]
[329342145,1718259061459,-1019.512331,0.00018,2]
[329342146,1718259061471,-151.0,0.00018,2]
[329342147,1718259061484,-151.0,0.00018,2]
[329342148,1718259061499,-457.251663,0.00018,2]
[329342149,1718259061519,-457.251663,0.00018,2]
[329342150,1718259061529,-151.0,0.00018,2]
[329342151,1718259061539,-1000.0,0.00018,3]
[329342152,1718259061550,-420.0,0.00018079,2]
[329342153,1718259061560,-500.0,0.00018081,2]
[329342154,1718259061570,-500.0,0.00018082,2]
[329342155,1718259061581,-500.0,0.00018082,2]
[329342156,1718259061596,-500.0,0.00018082,2]
[329342157,1718259061606,-500.0,0.00018082,2]
[329342158,1718259061620,-500.0,0.00018082,2]
[329342159,1718259061630,-161.46,0.00018082,2]
[329342160,1718259061642,-500.0,0.00018082,2]
[329342161,1718259061656,-500.0,0.00018082,2]
[329342162,1718259061669,-500.0,0.00018082,2]
[329342163,1718259061685,-1250.01,0.00018082,2]
[329342164,1718259061702,-500.0,0.00018082,2]
[329342165,1718259061740,-569.721875,0.00018082,2]
[329342166,1718259061757,-569.721875,0.00018082,2]
[329342167,1718259061781,-500.0,0.00018082,2]
[329342168,1718259061801,-4070.87,0.00018082,2]
[329342169,1718259061818,-580.08,0.00018082,2]
[329342170,1718259061851,-500.0,0.00018082,2]
[329342171,1718259061869,-500.0,0.00018082,2]
[329342172,1718259061880,-1096.8,0.00018082,2]
[329342173,1718259061908,-1892.7,0.00018082,2]
[329342174,1718259061936,-500.0,0.00018082,2]
[329342175,1718259061946,-500.0,0.00018082,2]
[329342176,1718259061959,-500.0,0.00018082,2]
[329342177,1718259061970,-500.0,0.00018082,2]
[329342178,1718259061981,-500.0,0.00018082,2]
[329342179,1718259061991,-500.0,0.00018082,2]
[329342180,1718259062001,-500.0,0.00018082,2]
[329342181,1718259062015,-500.0,0.00018082,2]
[329342182,1718259062029,-500.0,0.00018082,2]
[329342183,1718259062041,-1003.6,0.00018082,2]
[329342184,1718259062056,-905.34,0.00018082,2]
[329342185,1718259062077,-500.0,0.00018082,2]
[329342186,1718259062090,-994.87,0.00018082,2]
[329342187,1718259062101,-500.0,0.00018082,2]
[329342188,1718259062113,-638.61,0.00018082,2]
[329342189,1718259062137,-508.07087699,0.00018082,2]
[329342190,1718259062148,-295.79539,0.00018082,2]
[329342191,1718259062178,-500.0,0.00018082,2]
[329342192,1718259062189,-295.79539,0.00018082,2]
[329342193,1718259062200,-500.0,0.00018082,2]
[329342194,1718259062217,-551.79,0.00018082,2]
[329342195,1718259062228,-1532.283998,0.00018082,2]
[329342196,1718259062246,-761.37,0.00018082,2]
[329342197,1718259062256,-3329.91,0.00018082,2]
[329342198,1718259062266,-1532.283998,0.00018082,2]
[329342199,1718259062277,-1512.49,0.00018082,2]
[329342200,1718259062288,-151.0,0.00018082,2]
[329342201,1718259062308,-178.298899,0.00018082,2]
[329342202,1718259062331,-500.0,0.00018082,2]
[329342203,1718259062343,-2732.06,0.00018082,2]
[329342204,1718259062355,-500.0,0.00018082,2]
[329342205,1718259062376,-647.6,0.00018118,2]
[329342206,1718259062388,-1173.980648,0.000182,2]
[329342207,1718259062406,-1173.980648,0.000182,2]
[329342208,1718259062510,-150.0,0.00018218,2]
[329342209,1718259062521,-5282.5380268,0.00018261,2]
[329342210,1718259062538,-647.6,0.00018322,2]
[329342211,1718259062549,-500.0,0.00018355,2]
[329342212,1718259062560,-500.0,0.00018356,2]
[329342213,1718259062584,-500.0,0.00018356,2]
[329342214,1718259062603,-500.0,0.00018356,2]
[329342215,1718259062613,-151.0,0.00018356,2]
[329342216,1718259062625,-348.78,0.00018356,2]
[329342217,1718259062653,-151.0,0.00018356,2]
[329342218,1718259062664,-500.0,0.00018356,2]
[329342219,1718259062689,-500.0,0.00018356,2]
[329342220,1718259062707,-509.58,0.00018356,2]
[329342221,1718259062737,-500.0,0.00018356,2]
[329342222,1718259062757,-1250.01,0.00018356,2]
[329342223,1718259062770,-151.0,0.00018356,2]
[329342224,1718259062793,-500.0,0.00018356,2]
[329342225,1718259062812,-500.0,0.00018356,2]
[329342226,1718259062823,-4070.87,0.00018356,2]
[329342227,1718259062848,-580.08,0.00018356,2]
[329342228,1718259062892,-151.0,0.00018356,2]
[329342229,1718259062933,-500.0,0.00018356,2]
[329342230,1718259062967,-500.0,0.00018356,2]
[329342231,1718259062977,-1096.8,0.00018356,2]
[329342232,1718259062997,-151.0,0.00018356,2]
[329342233,1718259063016,-1892.7,0.00018356,2]
[329342234,1718259063041,-500.0,0.00018356,2]
[329342235,1718259063055,-500.0,0.00018356,2]
[329342236,1718259063066,-151.0,0.00018356,2]
[329342237,1718259063095,-500.0,0.00018356,2]
[329342238,1718259063128,-151.0,0.00018356,2]
[329342239,1718259063139,-500.0,0.00018356,2]
[329342240,1718259063193,-500.0,0.00018356,2]
[329342241,1718259063205,-500.0,0.00018356,2]
[329342242,1718259063228,-1003.6,0.00018356,2]
[329342243,1718259063239,-593.511182,0.00018356,2]
[329342244,1718259063300,-151.0,0.00018356,2]
[329342245,1718259063311,-593.511182,0.00018356,2]
[329342246,1718259063329,-905.34,0.00018356,2]
[329342247,1718259063353,-500.0,0.00018356,2]
[329342248,1718259063375,-151.0,0.00018356,2]
[329342249,1718259063386,-994.87,0.00018356,2]
[329342250,1718259063396,-500.0,0.00018356,2]
[329342251,1718259063415,-638.61,0.00018356,2]
[329342252,1718259063430,-500.0,0.00018356,2]
[329342253,1718259063441,-500.0,0.00018356,2]
[329342254,1718259063455,-551.79,0.00018356,2]
[329342255,1718259063486,-761.37,0.00018356,2]
[329342256,1718259063505,-3329.91,0.00018356,2]
[329342257,1718259063519,-1512.49,0.00018356,2]
[329342258,1718259063544,-500.0,0.00018356,2]
[329342259,1718259063555,-2732.06,0.00018356,2]
[329342260,1718259063566,-607.00972121,0.000185,2]
[329342261,1718259063576,-647.6,0.00018527,2]
[329342262,1718259063589,-166.666666,0.00018575,2]
[329342263,1718259063608,-1750.0,0.00018628,2]
[329342264,1718259063619,-317.55665125,0.00018628,2]
[329342265,1718259063632,-155.30572208,0.00018628,2]
[329342266,1718259063643,-500.0,0.0001863,2]
[329342267,1718259063653,-500.0,0.0001863,2]
[329342268,1718259063663,-500.0,0.0001863,2]
[329342269,1718259063685,-500.0,0.0001863,2]
[329342270,1718259063708,-500.0,0.0001863,2]
[329342271,1718259063720,-615.15,0.0001863,2]
[329342272,1718259063731,-1250.01,0.0001863,2]
[329342273,1718259063759,-500.0,0.0001863,2]
[329342274,1718259063771,-500.0,0.0001863,2]
[329342275,1718259063782,-4070.87,0.0001863,2]
[329342276,1718259063795,-580.08,0.0001863,2]
[329342277,1718259063809,-500.0,0.0001863,2]
[329342278,1718259063819,-500.0,0.0001863,2]
[329342279,1718259063835,-1096.8,0.0001863,2]
[329342280,1718259063846,-1892.7,0.0001863,2]
[329342281,1718259063858,-500.0,0.0001863,2]
[329342282,1718259063868,-500.0,0.0001863,2]
[329342283,1718259063879,-500.0,0.0001863,2]
[329342284,1718259063890,-500.0,0.0001863,2]
[329342285,1718259063905,-500.0,0.0001863,2]
[329342286,1718259063926,-500.0,0.0001863,2]
[329342287,1718259063939,-1003.6,0.0001863,2]
[329342288,1718259063956,-905.34,0.0001863,2]
[329342289,1718259063974,-500.0,0.0001863,2]
[329342290,1718259063986,-994.87,0.0001863,2]
[329342291,1718259063997,-500.0,0.0001863,2]
[329342292,1718259064036,-638.61,0.0001863,2]
[329342293,1718259064047,-500.0,0.0001863,2]
[329342294,1718259064058,-500.0,0.0001863,2]
[329342295,1718259064069,-551.79,0.0001863,2]
[329342296,1718259064080,-761.37,0.0001863,2]
[329342297,1718259064092,-3329.91,0.0001863,2]
[329342298,1718259064129,-1512.49,0.0001863,2]
[329342299,1718259064147,-500.0,0.0001863,2]
[329342300,1718259064160,-2732.06,0.0001863,2]
[329342301,1718259064172,-250.0,0.0001863,2]
[329342302,1718259064194,-647.6,0.00018732,2]
[329342303,1718259064208,-196.510993,0.00018896,2]
[329342304,1718259064221,-170.881692,0.00018896,2]
[329342305,1718259064234,-938.98252434,0.000189,2]
[329342306,1718259064244,-500.0,0.00018903,2]
[329342307,1718259064257,-500.0,0.00018904,2]
[329342308,1718259064268,-500.0,0.00018904,2]
[329342309,1718259064278,-500.0,0.00018904,2]
[329342310,1718259064289,-500.0,0.00018904,2]
[329342311,1718259064307,-500.0,0.00018904,2]
[329342312,1718259064323,-152.311017,0.00018904,2]
[329342313,1718259064336,-1250.01,0.00018904,2]
[329342314,1718259064347,-500.0,0.00018904,2]
[329342315,1718259064357,-500.0,0.00018904,2]
[329342316,1718259064368,-4070.87,0.00018904,2]
[329342317,1718259064380,-326.944004,0.00018904,2]
[329342318,1718259064403,-326.944004,0.00018904,2]
[329342319,1718259064422,-151.0,0.00018904,2]
[329342320,1718259064444,-264.605845,0.00018904,2]
[329342321,1718259064481,-1019.512331,0.00018904,2]
[329342322,1718259064491,-580.08,0.00018904,2]
[329342323,1718259064502,-151.0,0.00018904,2]
[329342324,1718259064529,-1019.512331,0.00018904,2]
[329342325,1718259064547,-234.26,0.00018904,2]
[329342326,1718259064578,-500.0,0.00018904,2]
[329342327,1718259064609,-1096.8,0.00018904,2]
[329342328,1718259064644,-1892.7,0.00018904,2]
[329342329,1718259064677,-457.251663,0.00018904,2]
[329342330,1718259064695,-457.251663,0.00018904,2]
[329342331,1718259064713,-500.0,0.00018904,2]
[329342332,1718259064733,-500.0,0.00018904,2]
[329342333,1718259064773,-526.46,0.00018904,2]
[329342334,1718259064801,-304.37166635,0.00018904,2]
[329342335,1718259064812,-500.0,0.00018904,2]
[329342336,1718259064823,-500.0,0.00018904,2]
[329342337,1718259064834,-1003.6,0.00018904,2]
[329342338,1718259064845,-905.34,0.00018904,2]
[329342339,1718259064867,-500.0,0.00018904,2]